{"text_format":"1","workbook":"xlsx","n_sheets":3,"sheets":["Blad1","Blad2","Blad3"],"not_rendered":{"charts":0,"images":5,"macros":1,"external_links":0,"defined_names":0,"comments":0,"pivot_tables":0},"unopened":[],"bounds":{"document_bytes":16777216,"sheet_cells":100000,"rows_first":2000,"rows_last":500,"rows_between":2000,"halvings":0,"cell_chars":16384,"cell_head_chars":4096},"cells_cut":0,"cells_raw":0,"read":"whole","date_system":"1900"}

{"sheet":"Blad1","index":0,"n_rows":38,"n_cols":20,"rows_kept":38,"cut":false,"hidden":false,"merged":[]}
[null,"Comparatieve kostenverschillen",null,null,null,null,null,null,null,null,null,null,null,"www.jdjong.nl"]
[null,"Vul de gele vakjes in met zelfverzonnen getallen. Probeer bij het aantal uren na arbeidsdeling lager en bij het aantal producten na arbeidsdeling hoger uit te "]
[null,"komen dan bij het aantal uren en producten vóór arbeidsdeling. Getallen die niet kunnen of fout zijn worden in rood weergegeven."]
[]
[null,"Aantal uren per eenheid product",null,null,null,"Ruilverhouding",null,null,null,null,null,null,"Nieuwe ruilverhouding"]
[null,"Kolom1","Kolom2","Kolom3"]
[null,null,"Product X","Product Y",null,null,null,null,null,null,null,null,{"$f":"$J$35/$K$36","v":3}]
[null,"Land A",25,50,null,1,":",{"$f":"$D$8/$C$8","v":2},{"$f":"IF(AND(D8<D9,C9<C8),\"Land A heeft een absoluut voordeel met product Y en land B met product X\",\"\")","v":""},null,null,null,{"$f":"$J$36/$K$35","v":2.2000000000000002}]
[null,"Land B",10,40,null,1,":",{"$f":"$D$9/$C$9","v":4},{"$f":"IF(AND(D9<D8,C9>C8),\"Land A heeft een absoluut voordeel met product X en Land B met product Y\",\"\")","v":""}]
[]
[null,{"$f":"IF(AND(H8<H9,D8<D9,C8<=C9),\"Land A heeft voor (een van) beide producten een absoluut voordeel, maar land A heeft een comparatief voordeel met product Y en land B met product X\",\"\")","v":""}]
[null,{"$f":"IF(AND(H8>H9,D8<=D9,C8<C9),\"Land A heeft voor (een van) beide producten een absoluut voordeel, maar land A heeft een comparatief voordeel met product X en land B met product Y\",\"\")","v":""}]
[null,{"$f":"IF(AND(H8>H9,C8>=C9,D8>D9),\"Land B heeft voor (een van) beide producten een absoluut voordeel, maar land B heeft een comparatief voordeel met product Y en land A met product X\",\"\")","v":""}]
[null,{"$f":"IF(AND(H8<H9,C8>C9,D8>=D9),\"Land B heeft voor (een van) beide producten een absoluut voordeel, maar land B heeft een comparatief voordeel met product X en land A met product Y\",\"\")","v":"Land B heeft voor (een van) beide producten een absoluut voordeel, maar land B heeft een comparatief voordeel met product X en land A met product Y"}]
[]
[null,"Aantal uren per land vóór arbeidsdeling",null,null,null,null,null,null,"Aantal producten vóór arbeidsdeling"]
[null,"Kolom1","Kolom2","Kolom3","Kolom4",null,null,null,"Kolom1","Kolom2","Kolom3","Kolom4"]
[null,null,"Land A","Land B","Totaal",null,null,null,null,"Product X","Product Y","Totaal"]
[null,"Aantal beschikbare uren voor product X",1000000,500000,null,null,null,null,"Land A",{"$f":"ROUNDDOWN($C$19/$C$8,0)","v":40000},{"$f":"ROUNDDOWN($C$20/$D$8,0)","v":20000}]
[null,"Aantal beschikbare uren voor product Y",1000000,500000,null,null,null,null,"Land B",{"$f":"ROUNDDOWN($D$19/$C$9,0)","v":50000},{"$f":"ROUNDDOWN($D$20/$D$9,0)","v":12500}]
[null,"Aantal beschikbare uren per land",{"$f":"C19+C20","v":2000000},{"$f":"D19+D20","v":1000000},{"$f":"SUM(C21:D21)","v":3000000},null,null,null,"Totaal ",{"$f":"SUM(J19:J20)","v":90000},{"$f":"SUM(K19:K20)","v":32500},{"$f":"SUM(J21:K21)","v":122500}]
[]
[]
[null,"Aantal uren na arbeidsdeling bij dezelfde productie vóór arbeidsdeling",null,null,null,null,null,null,"Aantal producten na arbeidsdeling bij hetzelfde aantal uren vóór arbeidsdeling",null,null,null,null,null,null,null,"Aantal producten na arbeidsdeling bij hetzelfde aantal uren vóór arbeidsdeling"]
[null,"Kolom1","Kolom2","Kolom3","Kolom4",null,null,null,"Kolom1","Kolom2","Kolom3","Kolom4",null,null,null,null,"Kolom1","Kolom2","Kolom3","Kolom4"]
[null,null,"Land A","Land B","Totaal",null,null,null,null,"Product X","Product Y","Totaal",null,null,null,null,null,"Product X","Product Y","Totaal"]
[null,"Product X",{"$f":"IF($H$8>$H$9,$J$21*$C$8,0)","v":0},{"$f":"IF($H$8<$H$9,$J$21*$C$9,0)","v":900000},null,null,null,null,"Land A",{"$f":"ROUNDDOWN(R27,0)","v":0},{"$f":"ROUNDDOWN(S27,0)","v":40000},null,null,null,null,null,"Land A",{"$f":"IF($H$8>$H$9,$C$21/$C$8,0)","v":0},{"$f":"IF($H$8<$H$9,$C$21/$D$8,0)+ROUNDDOWN(,0)","v":40000}]
[null,"Product Y",{"$f":"IF($H$8<$H$9,$K$21*$D$8,0)","v":1625000},{"$f":"IF($H$8>$H$9,$K$21*$D$9,0)","v":0},null,null,null,null,"Land B",{"$f":"ROUNDDOWN(R28,0)","v":100000},{"$f":"ROUNDDOWN(S28,0)","v":0},null,null,null,null,null,"Land B",{"$f":"IF($H$8<$H$9,$D$21/$C$9,0)+ROUNDDOWN(,0)","v":100000},{"$f":"IF($H$8>$H$9,$D$21/$D$9,0)+ROUNDDOWN(,0)","v":0}]
[null,"Per land",{"$f":"SUBTOTAL(109,C26:C28)","v":1625000},{"$f":"SUBTOTAL(109,D26:D28)","v":900000},{"$f":"SUM(C29:D29)","v":2525000},null,null,null,"Totaal",{"$f":"SUBTOTAL(109,J26:J28)","v":100000},{"$f":"SUBTOTAL(109,K26:K28)","v":40000},{"$f":"J29+K29","v":140000},null,null,null,null,"Totaal",{"$f":"SUBTOTAL(109,R26:R28)","v":100000},{"$f":"SUBTOTAL(109,S26:S28)","v":40000},{"$f":"R29+S29","v":140000}]
[null,null,null,null,{"$f":"IF(AND(E29<E21,E29>0),\"Minder uren!\",\"\")","v":"Minder uren!"},null,null,null,null,null,null,{"$f":"IF(L29>L21,\"Meer producten!\",\"Geen (comparatief) voordeel!\")","v":"Meer producten!"}]
[]
[null,"Vul in de tabel hiernaast getallen in na arbeidsdeling en na de ruil tussen land A en B.",null,null,null,null,null,null,"Aantal producten na arbeidsdeling en na de ruil tussen de twee landen"]
[null,null,null,null,null,null,null,null,"Kolom1","Kolom2","Kolom3","Kolom4"]
[null,"Vergelijk de ingevulde getallen met de situatie vóór arbeidsdeling. ",null,null,null,null,null,null,null,"Product X","Product Y","Totaal"]
[null,"Beide landen moeten erop vooruit gaan.",null,null,null,null,null,null,"Land A",45000,25000]
[null,"In de cel hieronder komt te staan of je een goede ruilverhouding",null,null,null,null,null,null,"Land B",55000,15000]
[null,{"$f":"IF(AND($M$7>$H$8,$M$7<$H$9),\"Goede ruilverhouding!\",\"\")","v":"Goede ruilverhouding!"},null,"hebt gekozen.",null,null,null,null,"Totaal",{"$f":"SUBTOTAL(109,J34:J36)","v":100000},{"$f":"SUBTOTAL(109,K34:K36)","v":40000},{"$f":"J37+K37","v":140000}]
[null,{"$f":"IF(AND($H$9<$M$8,$H$8>$M$8),\"Goede ruilverhouding!\",\"\")","v":""},null,null,null,null,null,null,"Aantal producten zijn naar beneden afgerond!"]

{"sheet":"Blad2","index":1,"n_rows":0,"n_cols":0,"rows_kept":0,"cut":false,"hidden":false,"merged":[]}

{"sheet":"Blad3","index":2,"n_rows":0,"n_cols":0,"rows_kept":0,"cut":false,"hidden":false,"merged":[]}